bitfinex/quotes_ETHUSD_20240928
["timestamp","ask_amount","ask_price","bid_price","bid_amount"]
[1727515841168,0.8301,2670.8,2670.5,4.57851009]
[1727515841169,1.60949364,2670.8,2670.5,4.57851009]
[1727515841368,1.17142253,2670.9,2670.7,1.57851009]
[1727515841369,0.77939364,2670.9,2670.7,1.57851009]
[1727515841593,0.77939364,2671.0,2670.8,3.74411]
[1727515841767,0.77939364,2671.1,2671.0,3.74391]
[1727515842137,2.00152253,2671.2,2671.0,3.74391]
[1727515842333,1.60941959,2671.2,2671.1,5.32228009]
[1727515842560,0.8301,2671.2,2671.1,5.32228009]
[1727515842968,0.77931959,2671.3,2671.1,5.32228009]
[1727515843148,1.60941959,2671.4,2671.1,5.32228009]
[1727515843351,1.60941959,2671.4,2671.2,3.7436]
[1727515843687,0.77931959,2671.6,2671.5,3.74321]
[1727515843851,0.77931959,2671.7,2671.6,1.57851009]
[1727515844172,0.77931959,2671.8,2671.7,3.74293]
[1727515844378,2.39239786,2672.0,2671.6,5.32157009]
[1727515844379,1.60941959,2672.0,2671.6,5.32157009]
[1727515844681,1.60941959,2672.0,2671.6,5.32146009]
[1727515844848,1.60941959,2672.0,2671.7,3.74282]
[1727515845379,0.8301,2672.0,2671.7,3.74282]
[1727515847041,0.8301,2672.0,2671.8,3.74276]
[1727515847243,1.60941959,2672.2,2671.8,3.74276]
[1727515847467,0.8301,2672.2,2671.9,3.74264]
[1727515847775,0.8301,2672.2,2671.8,3.74276]
[1727515848757,0.8301,2672.2,2671.8,3.74271]
[1727515849252,0.8301,2672.2,2671.8,3.7427]
[1727515849475,0.8301,2672.2,2672.0,3.74243]
[1727515849765,0.8301,2672.6,2672.2,3.74213]
[1727515850167,0.8301,2672.6,2672.3,3.74196]
[1727515850353,0.8301,2672.6,2672.2,3.74213]
[1727515850942,0.8301,2672.6,2672.3,3.74208]
[1727515851281,0.8301,2672.6,2672.2,3.74213]
[1727515851491,0.8301,2672.6,2672.2,3.74216]
[1727515851788,0.8301,2672.6,2672.3,3.74208]
[1727515853167,0.8301,2672.6,2672.2,3.74221]
[1727515854266,0.8301,2672.6,2672.2,3.74215]
[1727515854468,0.1287617,2672.7,2672.4,3.74192]
[1727515854639,0.1287617,2672.7,2672.4,3.0]
[1727515854845,0.1287617,2672.7,2672.4,6.74191]
[1727515855287,0.1287617,2672.7,2672.6,3.74167]
[1727515855593,0.1287617,2672.7,2672.6,4.86485385]
[1727515855758,0.1287617,2672.7,2672.6,7.86485385]
[1727515855962,0.1287617,2672.7,2672.6,8.549828]
[1727515859201,0.1287617,2672.7,2672.6,4.048358]
[1727515859349,0.1287617,2672.7,2672.4,3.0]
[1727515859861,0.1287617,2672.7,2672.4,6.74185]
[1727515860779,0.1287617,2672.7,2672.5,3.74177]
[1727515861245,0.1287617,2672.7,2672.5,8.10448828]
[1727515861447,0.1287617,2672.7,2672.6,7.15791144]
[1727515861685,0.1287617,2672.7,2672.6,3.41624144]
[1727515861989,0.1287617,2672.7,2672.5,0.62099828]
[1727515862160,0.1287617,2672.7,2672.5,4.36279828]
[1727515862363,0.1287617,2672.7,2672.6,3.74167]
[1727515862545,0.1287617,2672.7,2672.6,4.85211683]
[1727515863447,0.1287617,2672.7,2672.6,8.26835827]
[1727515863671,0.1287617,2672.7,2672.6,12.02815827]
[1727515865091,0.1287617,2672.7,2672.6,12.57815827]
[1727515866193,0.1287617,2672.7,2672.6,12.02815827]
[1727515872834,0.1287617,2672.7,2672.6,12.57815827]
[1727515873798,0.1287617,2672.7,2672.6,12.02815827]
[1727515874620,0.1287617,2672.7,2672.6,12.57815827]
[1727515875224,0.1287617,2672.7,2672.6,12.02815827]
[1727515877114,0.1287617,2672.7,2672.6,12.57815827]
[1727515878926,0.1287617,2672.7,2672.6,15.99439971]
[1727515880126,0.1287617,2672.7,2672.6,12.57815827]
[1727515880424,0.1287617,2672.7,2672.6,8.26835827]
[1727515881503,0.1287617,2672.7,2672.5,4.36279828]
[1727515881833,0.1287617,2672.7,2672.6,7.15791144]
[1727515882900,0.1287617,2672.7,2672.6,10.15791144]
[1727515886524,0.1287617,2672.7,2672.6,10.94911144]
[1727515890543,0.1287617,2672.7,2672.6,10.15791144]
[1727515902362,0.1287617,2672.7,2672.6,6.74167]
[1727515902567,0.1287617,2672.7,2672.6,11.62700258]
[1727515902733,0.1287617,2672.7,2672.6,12.42980258]
[1727515903759,0.1287617,2672.7,2672.6,13.81790492]
[1727515903922,0.1287617,2672.7,2672.6,12.74303669]
[1727515904321,0.1287617,2672.7,2672.6,13.81788007]
[1727515905143,0.1287617,2672.7,2672.6,13.81786748]
[1727515905342,0.1287617,2672.7,2672.6,13.50463337]
[1727515905664,0.1287617,2672.7,2672.6,12.74301364]
[1727515905989,0.1287617,2672.7,2672.6,14.36776836]
[1727515907276,0.1287617,2672.7,2672.6,15.15130626]
[1727515907942,0.1287617,2672.7,2672.6,14.36776836]
[1727515908147,0.1287617,2672.7,2672.6,8.62700258]
[1727515908351,0.1287617,2672.7,2672.6,7.15791144]
[1727515909281,0.1287617,2672.7,2672.6,7.23273285]
[1727515909478,0.1287617,2672.7,2672.6,10.23273285]
[1727515909663,0.1287617,2672.7,2672.6,10.15791144]
[1727515909845,0.1287617,2672.7,2672.6,11.54788258]
[1727515910648,0.1287617,2672.7,2672.6,12.35068258]
[1727515911556,0.1287617,2672.7,2672.6,11.54788258]
[1727515917894,0.1287617,2672.7,2672.6,11.86119971]
[1727515918093,0.1287617,2672.7,2672.6,12.33128258]
[1727515918253,0.1287617,2672.7,2672.6,12.64460392]
[1727515918459,0.1287617,2672.7,2672.6,12.64460419]
[1727515918667,0.1287617,2672.7,2672.6,12.64460327]
[1727515918990,0.1287617,2672.7,2672.6,12.33128258]
[1727515919192,0.1287617,2672.7,2672.6,12.64460457]
[1727515919757,0.1287617,2672.7,2672.6,12.33128258]
[1727515919957,0.1287617,2672.7,2672.6,12.64461217]
[1727515920173,0.1287617,2672.7,2672.6,12.33128258]
[1727515921395,0.1287617,2672.7,2672.6,12.64462704]
[1727515921553,0.1287617,2672.7,2672.6,12.33128258]
[1727515921758,0.1287617,2672.7,2672.6,12.6446322]
[1727515922190,0.1287617,2672.7,2672.6,12.64463101]
[1727515922398,0.1287617,2672.7,2672.6,12.33128258]
[1727515923268,0.1287617,2672.7,2672.6,6.74167]
[1727515924801,0.9084034,2672.7,2672.6,3.74167]
[1727515925677,0.1287617,2672.7,2672.6,7.15791144]
[1727515925870,0.1287617,2672.7,2672.6,10.15791144]
[1727515926269,0.1287617,2672.7,2672.6,11.54788258]
[1727515926676,1.95578537,2673.1,2672.6,11.54788258]
[1727515926677,2.34694245,2674.1,2673.7,3.7401]
[1727515926976,0.7551,2674.2,2673.8,3.41624144]
[1727515927211,0.7551,2674.2,2673.8,7.15621144]
[1727515927415,0.7551,2674.2,2673.8,3.73997]
[1727515929576,0.7551,2674.2,2674.1,3.73957]
[1727515930967,0.7551,2674.2,2673.8,3.73996]
[1727515931076,0.7551,2674.7,2674.1,3.73952]
[1727515931281,0.7551,2674.7,2674.2,3.7394]
[1727515931619,0.7551,2674.6,2674.2,3.7394]
[1727515931818,0.7551,2674.6,2674.0,3.73962]
[1727515932112,0.7551,2674.5,2674.0,3.7397]
[1727515933221,0.7551,2673.9,2673.4,3.74045]
[1727515935678,0.7551,2673.8,2673.4,3.74045]
[1727515935905,0.7551,2673.7,2673.4,3.74045]
[1727515937084,0.7551,2673.7,2673.2,3.74076]
[1727515937278,0.7551,2673.7,2673.2,3.74074]
[1727515937783,0.7551,2673.6,2673.2,3.74074]
[1727515938094,0.7551,2673.6,2673.4,3.74047]
[1727515938511,0.7551,2673.6,2673.4,7.48092]
[1727515939731,0.7551,2673.6,2673.4,3.74045]
[1727515940436,0.7551,2673.6,2673.5,3.74041]
[1727515945362,0.7551,2673.6,2673.3,3.74058]
[1727515945810,0.7551,2673.6,2673.4,3.74053]
[1727515949735,0.7551,2673.6,2673.5,3.74041]
[1727515950156,0.7551,2673.6,2673.4,3.74053]
[1727515950857,0.7551,2673.6,2673.4,3.74047]
[1727515951068,1.98719474,2673.9,2673.5,3.74041]
[1727515951224,1.98719474,2673.9,2673.6,3.74015]
[1727515951225,0.8157,2673.9,2673.6,3.74015]
[1727515951649,0.8157,2673.9,2673.6,7.48034]
[1727515952134,0.8157,2673.9,2673.6,3.74015]
[1727515953658,1.38838447,2673.9,2673.4,7.48094]
[1727515953966,2.55987921,2673.9,2673.4,3.74047]
[1727515954552,0.78616331,2673.8,2673.4,3.74047]
[1727515955083,0.751,2673.7,2673.4,3.74047]
[1727515955741,0.751,2673.7,2673.4,3.74046]
[1727515955979,0.751,2673.7,2673.4,7.48093]
[1727515956148,0.751,2673.7,2673.4,3.74046]
[1727515956351,0.751,2673.7,2673.4,7.48093]
[1727515956868,0.751,2673.7,2673.5,3.74038]
[1727515957251,0.751,2673.7,2673.6,3.74027]
[1727515958479,1.17149474,2673.9,2673.6,3.74027]
[1727515958480,0.751,2673.9,2673.6,3.74027]
[1727515958652,1.92249474,2673.9,2673.4,3.74045]
[1727515958977,5.66249474,2673.8,2673.3,3.74068]
[1727515959181,6.22872321,2673.8,2673.3,3.74068]
[1727515959348,2.48872321,2673.8,2673.2,3.74074]
[1727515959544,2.48872321,2673.8,2673.4,3.74054]
[1727515961185,2.48872321,2673.8,2673.4,3.7405]
[1727515961488,1.92249474,2673.8,2673.4,3.7405]
[1727515963083,1.92249474,2673.8,2673.3,7.48119]
[1727515963447,1.92249474,2673.8,2673.4,3.74052]
[1727515963650,2.99914794,2673.8,2673.4,3.74052]
[1727515963844,2.99914794,2673.8,2673.3,3.74058]
[1727515964072,1.92249474,2673.8,2673.5,3.7404]
[1727515965449,1.92249474,2673.8,2673.5,3.74039]
[1727515971589,1.17149474,2673.7,2673.5,3.74039]
[1727515974797,1.17149474,2673.7,2673.5,3.74034]
[1727515974996,1.17149474,2673.7,2673.6,3.74027]
[1727515975199,1.17149474,2673.8,2673.6,3.74027]
[1727515976298,1.17149474,2673.8,2673.6,3.74014]
[1727515977168,1.17149474,2673.7,2673.6,3.74014]
[1727515979921,1.17149474,2673.8,2673.7,3.74013]
[1727515981318,2.80201392,2673.9,2673.7,3.74013]
[1727515982347,6.12727392,2673.8,2673.2,0.8259]
[1727515982630,1.17726492,2673.5,2673.3,3.74062]
[1727515982927,1.17726492,2673.5,2673.0,6.14142114]
[1727515982928,1.17726492,2673.4,2673.2,3.74083]
[1727515983224,1.17726492,2673.3,2673.2,3.74083]
[1727515983907,2.00246492,2673.4,2673.2,3.74083]
[1727515984219,1.17726492,2673.4,2673.2,5.31534114]
[1727515984383,0.78483577,2673.3,2673.2,5.31534114]
[1727515984583,0.78483577,2673.3,2673.2,6.30356125]
[1727515985386,0.78483577,2673.3,2673.2,5.31534114]
[1727515985584,0.78483577,2673.3,2673.2,3.74083]
[1727515985780,1.17726492,2673.3,2673.2,3.74083]
[1727515986535,1.96208483,2673.3,2673.0,3.7411]
[1727515986738,1.17720974,2673.2,2673.1,3.74094]
[1727515986942,1.56955867,2673.3,2673.2,3.74083]
[1727515988198,1.56955867,2673.3,2673.2,7.04687125]
[1727515988199,1.17719161,2673.3,2673.2,7.04687125]
[1727515988397,0.78477018,2673.3,2673.2,10.04687125]
[1727515988830,0.78477018,2673.5,2673.3,3.74069]
[1727515988983,0.78477018,2673.5,2673.3,5.11947313]
[1727515989501,1.56955867,2673.7,2673.5,3.74041]
[1727515989502,1.17719161,2673.7,2673.5,3.74041]
[1727515989701,0.78499485,2673.6,2673.5,3.74041]
[1727515990017,0.78499485,2673.6,2673.5,4.56631]
[1727515990215,0.78499485,2673.6,2673.5,7.97742927]
[1727515990418,1.17719161,2673.7,2673.6,3.74027]
[1727515990623,1.17719161,2673.7,2673.6,4.91203993]
[1727515990936,2.02513274,2673.8,2673.7,3.74013]
[1727515991933,2.02513274,2673.8,2673.7,7.97714927]
[1727515992229,1.24,2673.8,2673.7,10.06381112]
[1727515992924,1.24,2673.8,2673.7,6.65269185]
[1727515993131,2.02513274,2673.8,2673.7,3.74013]
[1727515994036,2.02513274,2673.8,2673.6,3.74016]
[1727515994199,0.78482,2673.7,2673.6,3.74016]
[1727515994532,0.78480325,2673.7,2673.6,3.74016]
[1727515996435,1.24,2673.8,2673.7,7.53753]
[1727515996590,1.24,2673.8,2673.7,10.94864927]
[1727516000628,1.24,2673.9,2673.7,10.94864927]
[1727516000842,1.24,2674.1,2674.0,3.73971]
[1727516003399,2.02480325,2674.1,2674.0,3.73971]
[1727516003931,1.24,2674.1,2674.0,3.73971]
[1727516004240,2.02480325,2674.1,2674.0,3.73971]
[1727516004441,1.24,2674.1,2674.0,3.73971]
[1727516004742,2.02480325,2674.1,2673.9,3.73977]
[1727516004903,1.58650325,2674.0,2673.9,3.73977]
[1727516005101,1.58650325,2674.0,2673.7,3.74005]
[1727516005416,0.78480325,2673.9,2673.7,3.74005]
[1727516006178,0.78480325,2673.9,2673.7,7.4801]
[1727516006443,0.78480325,2673.9,2673.8,3.73999]
[1727516007251,0.78480325,2673.9,2673.7,3.74004]
[1727516008534,0.78480325,2673.9,2673.8,3.73999]
[1727516009052,0.78480325,2673.9,2673.5,10.89174927]
[1727516009348,0.78480325,2673.6,2673.5,3.7403]
[1727516009509,0.78480325,2673.7,2673.6,3.74027]
[1727516010141,1.58650325,2673.8,2673.7,3.74013]
[1727516010444,1.17719161,2673.9,2673.7,3.74013]
[1727516010600,1.17719161,2673.9,2673.6,5.31467957]
[1727516010812,0.78385527,2673.8,2673.7,3.7401]
[1727516011003,1.17719161,2673.9,2673.6,5.31467957]
[1727516011004,1.17719161,2673.9,2673.8,3.73999]
[1727516012917,1.17719161,2673.9,2673.7,3.7401]
[1727516013156,0.78387722,2673.8,2673.7,3.74003]
[1727516013359,1.17719161,2673.8,2673.7,3.74003]
[1727516013518,1.17719161,2673.9,2673.7,3.74003]
[1727516013740,0.7838963,2673.8,2673.7,3.74003]
[1727516014056,0.78387551,2673.8,2673.7,3.74003]
[1727516014255,1.17719161,2673.9,2673.7,3.74003]
[1727516014576,0.78389263,2673.8,2673.7,3.74003]
[1727516014949,0.78389263,2673.9,2673.8,3.73999]
[1727516015886,0.78389263,2673.9,2673.8,6.10559957]
[1727516016090,0.78389263,2673.9,2673.8,3.73999]
[1727516017981,1.59539263,2673.9,2673.6,1.57440957]
[1727516018276,1.59539263,2673.9,2673.7,3.74006]
[1727516018583,0.78389263,2673.8,2673.7,3.74006]
[1727516020896,1.98869161,2673.9,2673.6,3.74015]
[1727516021064,0.78407718,2673.7,2673.6,3.74015]
[1727516021283,0.78407718,2673.8,2673.6,3.74015]
[1727516021604,1.98869161,2673.9,2673.7,3.74013]
[1727516022115,0.78408795,2673.8,2673.7,3.74013]
[1727516023574,0.78408795,2673.8,2673.6,5.31455957]
[1727516023766,1.17719161,2673.9,2673.7,3.74013]
[1727516024213,1.17719161,2673.9,2673.7,3.73300065]
[1727516024582,0.78409754,2673.8,2673.6,5.31455957]
[1727516024909,0.78409754,2673.7,2673.6,7.48033]
[1727516026208,0.78409754,2673.7,2673.6,9.05473957]
[1727516026391,1.17719161,2673.9,2673.7,3.74013]
[1727516027795,0.78412107,2673.8,2673.7,3.74013]
[1727516029183,1.17719161,2673.9,2673.6,5.31455957]
[1727516029383,1.85303195,2673.9,2673.7,3.74011]
[1727516029629,1.17719161,2673.8,2673.7,3.74011]
[1727516035521,1.17719161,2673.8,2673.7,4.51271]
[1727516035816,1.1773494,2673.9,2673.8,3.73999]
[1727516036222,1.56955867,2674.0,2673.8,3.73999]
[1727516036446,1.1773376,2673.9,2673.8,3.73999]
[1727516036654,1.1773376,2673.9,2673.8,5.31439957]
[1727516036948,1.1773376,2674.0,2673.9,3.73985]
[1727516041316,1.1773376,2674.0,2673.8,3.73995]
[1727516041549,1.1773376,2673.9,2673.8,6.73995]
[1727516041850,1.1773376,2674.0,2673.8,3.73995]
[1727516042230,1.1773376,2673.9,2673.8,6.73995]
[1727516042742,1.1773376,2674.0,2673.8,8.31435957]
[1727516042934,1.1773376,2674.0,2673.8,3.0]
[1727516043363,1.1773376,2673.9,2673.7,3.74004]
[1727516043557,1.1773376,2673.8,2673.7,3.74013]
[1727516043741,1.56955867,2673.9,2673.7,3.74013]
[1727516043998,1.17735787,2673.8,2673.7,3.74013]
[1727516044502,2.19538726,2673.9,2673.7,7.48018]
[1727516044702,2.19538726,2673.9,2673.8,3.73999]
[1727516045777,2.19538726,2673.9,2673.7,3.74005]
[1727516045996,2.19538726,2673.9,2673.7,7.48008]
[1727516046181,2.19538726,2673.9,2673.8,3.73999]
[1727516048019,2.58841035,2673.9,2673.8,3.73999]
[1727516048321,2.58841035,2673.9,2673.7,3.74003]
[1727516048520,1.57051348,2673.8,2673.7,3.74003]
[1727516053487,1.47051348,2673.8,2673.7,3.74003]
[1727516061157,1.96279178,2674.0,2673.8,7.4799]
[1727516061451,2.0504,2674.1,2673.8,3.73995]
[1727516061452,1.96279178,2673.9,2673.8,3.73995]
[1727516061654,1.96279178,2674.0,2673.8,3.73995]
[1727516061862,1.57023677,2673.9,2673.8,3.73995]
[1727516062159,1.9627897,2673.9,2673.8,3.73995]
[1727516062857,1.9627897,2674.0,2673.8,5.31435957]
[1727516063027,1.9627897,2673.9,2673.8,6.13885957]
[1727516063211,1.24,2674.1,2673.9,3.73985]
[1727516063212,1.57017751,2674.0,2673.9,3.73985]
[1727516063414,1.57017751,2674.0,2673.9,6.67614553]
[1727516063746,2.81017751,2674.1,2674.0,3.73971]
[1727516064765,2.81017751,2674.1,2673.6,4.56475]
[1727516064766,2.0426,2674.1,2673.6,4.56475]
[1727516065069,1.56966537,2673.7,2673.6,0.8245]
[1727516065419,1.56966537,2673.7,2673.4,0.8245]
[1727516065767,1.56966537,2673.7,2672.9,12.00700366]
[1727516065768,1.56966537,2673.5,2673.3,3.74059]
[1727516065918,1.17710161,2673.4,2673.3,3.74059]
[1727516066645,1.17710161,2673.5,2673.4,3.74055]
[1727516066847,1.56966537,2673.5,2673.4,3.74055]
[1727516067422,0.8026,2673.4,2673.1,3.74089]
[1727516067765,1.56883044,2673.2,2673.0,3.741]
[1727516067963,1.17663899,2673.1,2673.0,3.741]
[1727516068551,1.07663899,2673.1,2673.0,3.741]
[1727516069362,1.56883044,2673.3,2673.0,3.741]
[1727516070021,1.56883044,2673.2,2673.0,3.741]
[1727516070237,1.56883044,2673.3,2673.0,3.741]
[1727516070687,0.78359118,2673.1,2673.0,3.741]
[1727516070898,1.56883044,2673.3,2673.0,3.741]
[1727516071053,0.78361131,2673.1,2673.0,3.741]
[1727516071257,0.78359332,2673.1,2673.0,3.741]
[1727516071952,0.78359332,2673.1,2672.9,3.0]
[1727516072157,0.78359332,2673.0,2672.9,3.0]
[1727516073087,0.78359332,2673.0,2672.8,5.31569957]
[1727516073269,0.78359332,2673.0,2672.8,9.05699957]
[1727516073671,0.78359332,2673.0,2672.8,5.31569957]
[1727516074276,0.78359332,2672.9,2672.7,3.0]
[1727516074886,0.78359332,2672.9,2672.7,6.74147]
[1727516075743,0.78359332,2672.9,2672.7,3.0]
[1727516076450,0.8242,2673.0,2672.7,3.0]
[1727516076451,1.60779332,2673.0,2672.7,3.0]
[1727516076790,0.78359332,2672.9,2672.5,3.0]
[1727516076948,0.78359332,2672.7,2672.4,3.74186]
[1727516077148,0.8242,2672.6,2672.2,4.5746]
[1727516077380,0.8242,2672.6,2672.4,3.74192]
[1727516077585,0.8242,2672.6,2672.4,3.74186]
[1727516078114,0.8242,2672.6,2672.5,3.74181]
[1727516078283,0.8242,2672.6,2672.4,3.74186]
[1727516078483,0.8242,2672.6,2672.4,7.48373]
[1727516078800,0.8242,2672.6,2672.4,3.74186]
[1727516078965,1.60779332,2672.8,2672.5,3.74181]
[1727516079469,1.60779332,2672.8,2672.4,3.74186]
[1727516079786,1.60779332,2672.8,2672.4,7.4837]
[1727516079964,1.60779332,2672.8,2672.4,3.74184]
[1727516080907,1.60779332,2672.8,2672.3,5.31641957]
[1727516080908,5.34919332,2672.8,2672.3,5.31641957]
[1727516081067,1.60779332,2672.8,2672.4,3.74192]
[1727516081468,0.8242,2672.8,2672.4,3.74192]
[1727516084108,4.56567,2672.8,2672.3,3.74201]
[1727516084314,8.84208833,2672.8,2672.1,3.74224]
[1727516084615,8.84208833,2672.8,2671.9,7.48514]
[1727516084616,0.8242,2672.4,2671.9,7.48514]
[1727516084796,0.8242,2672.4,2672.0,3.7425]
[1727516085217,4.5662,2672.4,2671.9,3.74256]
[1727516085388,0.8242,2672.4,2672.0,3.7425]
[1727516086032,5.21036452,2672.4,2671.9,3.74256]
[1727516086732,1.46838452,2672.4,2672.0,3.7425]
[1727516086903,0.8242,2672.4,2672.0,3.7425]
[1727516088973,0.8242,2672.4,2671.9,7.48514]
[1727516089132,0.8242,2672.4,2671.9,7.48512]
[1727516089287,0.8242,2672.4,2672.0,3.7425]
[1727516090505,0.8242,2672.4,2671.9,7.48512]
[1727516090828,0.8242,2672.4,2672.0,3.74251]
[1727516092519,0.7779,2672.5,2672.1,3.74229]
[1727516097663,0.7779,2672.5,2672.1,3.74234]
[1727516101781,0.7779,2672.7,2672.3,3.74201]
[1727516101931,4.51947,2672.7,2672.1,7.48459]
[1727516102133,4.51947,2672.7,2672.1,3.74228]
[1727516102134,0.7779,2672.5,2672.1,3.74228]
[1727516102332,0.7779,2672.5,2672.1,7.48456]
[1727516102531,0.7779,2672.5,2672.2,4.490666]
[1727516103362,0.7779,2672.5,2672.2,0.748456]
[1727516103875,0.7779,2672.5,2672.2,4.490666]
[1727516104866,0.7779,2672.5,2672.3,3.74206]
[1727516106356,0.7779,2672.5,2672.1,7.48453]
[1727516106556,0.7779,2672.5,2672.2,3.7422]
[1727516106772,0.7779,2672.5,2672.0,3.74238]
[1727516107000,0.7779,2672.5,2672.1,3.74237]
[1727516107823,0.7779,2672.5,2672.1,3.74229]
[1727516108003,0.7779,2672.5,2672.2,3.74219]
[1727516109281,0.7779,2672.5,2672.1,3.74228]
[1727516109483,0.7779,2672.5,2672.0,3.74241]
[1727516109689,1.17259247,2672.7,2672.2,4.50395]
[1727516109690,1.56149332,2672.7,2672.2,4.50395]
[1727516109879,1.56149332,2672.7,2672.3,3.74201]
[1727516110426,1.56149332,2672.7,2672.4,3.74183]
[1727516110718,0.78359332,2672.7,2672.5,4.490084]
[1727516110918,0.78359332,2672.8,2672.5,3.7417]
[1727516111290,0.78359332,2672.7,2672.5,4.27349989]
[1727516111682,0.78359332,2672.8,2672.5,4.27349989]
[1727516112278,0.78359332,2672.8,2672.3,9.06029887]
[1727516112591,0.78359332,2672.7,2672.5,3.74177]
[1727516113985,0.78359332,2672.6,2672.5,3.74177]
[1727516114379,0.78359332,2672.6,2672.3,5.31829887]
[1727516114580,0.78359332,2672.6,2672.3,4.65000989]
[1727516114915,0.78359332,2672.5,2672.4,3.74195]
[1727516115576,1.54459332,2672.5,2672.4,3.74195]
[1727516116393,0.761,2672.5,2672.4,3.74195]
[1727516116587,1.54450634,2672.5,2672.4,3.74195]
[1727516116888,0.761,2672.5,2672.4,3.74195]
[1727516117721,1.93359247,2672.5,2672.4,3.74195]
[1727516119794,1.17259247,2672.5,2672.4,3.74195]
[1727516122094,1.17259247,2672.5,2672.3,3.74206]
[1727516122279,1.17259247,2672.4,2672.3,3.74206]
[1727516123502,1.56883044,2672.5,2672.3,3.74206]
[1727516124017,1.56883044,2672.5,2672.2,3.74222]
[1727516124215,1.56883044,2672.5,2672.2,7.48437]
[1727516124216,1.17665913,2672.3,2672.2,7.48437]
[1727516124412,1.17665913,2672.3,2672.2,3.74215]
[1727516124742,1.17665913,2672.4,2672.3,3.74209]
[1727516125240,1.56883044,2672.5,2672.3,3.74209]
[1727516126006,1.17673635,2672.4,2672.3,7.48411]
[1727516127311,1.17673635,2672.4,2672.3,8.69015089]
[1727516128620,1.17673635,2672.4,2672.3,4.94806089]
[1727516128817,1.56883044,2672.5,2672.3,3.74202]
[1727516129319,1.1768627,2672.4,2672.3,3.74202]
[1727516129646,1.56883044,2672.5,2672.4,3.74195]
[1727516131459,1.56883044,2672.5,2672.4,8.249645]
[1727516131619,0.78488942,2672.5,2672.4,8.249645]
[1727516132149,0.78488942,2672.6,2672.5,6.74181]
[1727516132308,1.17739756,2672.7,2672.6,3.74167]
[1727516135647,1.32187145,2672.7,2672.6,3.74167]
[1727516136557,1.71330433,2672.7,2672.5,5.47278539]
[1727516136760,1.17777322,2672.6,2672.5,3.74181]
[1727516136970,1.56883044,2672.6,2672.4,3.0]
[1727516137175,1.56883044,2672.5,2672.0,0.757]
[1727516137336,0.78511481,2672.2,2672.0,3.74249]
[1727516137658,0.92931978,2672.1,2672.0,3.74249]
[1727516137887,1.32187719,2672.1,2672.0,3.74249]
[1727516138020,1.32187719,2672.1,2671.9,3.74264]
[1727516138221,0.78510573,2672.0,2671.9,7.48528]
[1727516138449,1.17767222,2672.1,2672.0,3.0]
[1727516138638,1.17767222,2672.1,2672.0,3.74251]
[1727516139246,1.32189354,2672.1,2672.0,3.74251]
[1727516139882,1.32189354,2672.1,2671.9,3.74257]
[1727516140084,0.78508137,2672.0,2671.9,7.48514]
[1727516140302,0.92926421,2672.0,2671.9,6.74257]
[1727516140778,0.14418284,2672.0,2671.9,6.74257]
[1727516141667,0.92936298,2672.0,2671.9,6.74257]
[1727516142958,0.14418284,2672.0,2671.9,6.74257]
[1727516143174,0.92932805,2672.0,2671.9,6.74257]
[1727516144095,0.92932805,2672.0,2671.9,3.0]
[1727516144299,2.89499635,2672.0,2671.7,3.0]
[1727516144488,2.89499635,2672.0,2671.7,6.74293]
[1727516144489,0.78510836,2671.9,2671.7,6.74293]
[1727516144696,0.92873939,2671.8,2671.6,3.0]
[1727516144873,0.92873939,2671.8,2671.7,3.0]
[1727516145705,0.92873939,2671.8,2671.7,6.74293]
[1727516148304,0.92873939,2671.8,2671.7,3.0]
[1727516148801,1.32129357,2671.8,2671.7,3.0]
[1727516149249,1.32129357,2671.8,2671.7,6.74293]
[1727516149622,0.92813756,2671.8,2671.7,6.74293]
[1727516150028,0.14363103,2671.8,2671.7,6.74293]
[1727516150525,0.9280166,2671.8,2671.7,6.74293]
[1727516151744,0.14363103,2671.8,2671.7,6.74293]
[1727516151937,0.14363103,2671.8,2671.7,10.28535776]
[1727516153924,0.14363103,2671.8,2671.7,6.74293]
[1727516154126,0.9280166,2671.8,2671.7,6.74293]
[1727516155962,0.9280166,2671.8,2671.7,3.0]
[1727516156692,0.9280166,2671.8,2671.7,6.74293]
[1727516157325,0.9280166,2671.8,2671.6,6.74305]
[1727516158229,0.9280166,2671.8,2671.5,3.74318]
[1727516158430,0.78438557,2671.7,2671.5,3.74318]
[1727516158625,2.13903753,2671.8,2671.5,3.74318]
[1727516158626,1.54478557,2671.6,2671.5,3.74318]
[1727516158858,1.68787005,2671.6,2671.5,3.74318]
[1727516159532,1.68787005,2671.6,2671.3,3.74343]
[1727516159533,1.68764279,2671.6,2671.3,7.48682]
[1727516159730,0.78415831,2671.5,2671.4,3.74323]
[1727516160275,0.14301323,2671.5,2671.4,4.50313]
[1727516160488,0.78415831,2671.7,2671.4,1.508562]
[1727516160701,0.78415831,2671.7,2671.6,3.74307]
[1727516161012,1.93806254,2671.9,2671.7,3.74293]
[1727516161013,0.78431873,2671.8,2671.7,3.74293]
[1727516161143,0.78431873,2671.9,2671.8,3.74279]
[1727516161345,1.17766254,2672.0,2671.8,3.74279]
[1727516161584,0.7844769,2671.9,2671.8,3.74279]
[1727516161985,1.17766254,2672.0,2671.8,3.74279]
[1727516162153,1.17766254,2672.0,2671.9,3.74265]
[1727516162782,1.32072012,2672.0,2671.9,3.74265]
[1727516163176,1.32072012,2672.0,2671.7,7.48577]
[1727516163386,0.78476092,2671.9,2671.7,7.48577]
[1727516163697,0.78476092,2671.9,2671.8,3.74279]
[1727516164445,0.78476092,2671.9,2671.7,7.48569]
[1727516164674,0.78476092,2671.8,2671.7,7.48569]
[1727516164871,0.78476092,2671.9,2671.7,7.48569]
[1727516165348,0.78476092,2671.8,2671.6,3.74299]
[1727516165659,1.54516092,2671.7,2671.5,3.74308]
[1727516165858,0.78476092,2671.6,2671.5,3.74308]
[1727516166685,0.78476092,2671.6,2671.3,3.74339]
[1727516166890,0.78476092,2671.6,2671.1,4.50361]
[1727516167191,0.78476092,2671.4,2671.1,3.74368]
[1727516168176,0.78476092,2671.4,2671.2,3.74361]
[1727516168529,1.17766254,2671.5,2671.2,3.74361]
[1727516168530,0.78476092,2671.5,2671.2,3.74361]
[1727516168879,0.78476092,2671.4,2671.2,3.74361]
[1727516169416,0.7604,2671.3,2671.1,3.74374]
[1727516170322,0.7604,2671.3,2671.2,3.74363]